fUSD/lending_fUSD_20250526
["ID","MTS","AMOUNT","RATE_DAILY","PERIOD"]
[362437936,1748291440493,-608902.968666,0.000249,2]
[362437937,1748291440502,-151.0,0.000249,7]
[362437938,1748291440746,-153.805566,0.000249,7]
[362437939,1748291440756,-154.073768,0.000249,7]
[362437940,1748291440765,-485.42420728,0.00024923,2]
[362437941,1748291440775,-5407.35426837,0.00025623,2]
[362437942,1748291440784,-301.08447076,0.00025771,2]
[362437943,1748291440794,-210.36569219,0.00026131,14]
[362437944,1748291440804,-4000.0,0.00026667,4]
[362437945,1748291440813,-5407.35426837,0.00027053,2]
[362437946,1748291440823,-485.42420728,0.00027434,2]
[362437947,1748291440832,-210.36569219,0.00027438,17]
[362437948,1748291440842,-623.55696788,0.00027724,2]
[362437949,1748291440851,-301.08447076,0.00027727,2]
[362437950,1748291440860,-153.0,0.00027927,2]
[362437951,1748291440870,-5407.35426837,0.00028484,2]
[362437952,1748291440879,-14902.95531725,0.000285,2]
[362437953,1748291440889,-154.0,0.00028537,2]
[362437954,1748291440899,-151.0,0.000286,2]
[362437955,1748291440908,-500.0,0.00028612,2]
[362437956,1748291440918,-210.36569219,0.00028746,19]
[362437957,1748291440927,-154.01,0.00029,2]
[362437958,1748291440936,-14902.95531718,0.00029006,2]
[362437959,1748291440945,-65250.83,0.000291,7]
[362437960,1748291440955,-151.77,0.00029364,2]
[362437961,1748291440964,-151.0,0.00029511,7]
[362437962,1748291440973,-14902.95531718,0.00029511,2]
[362437963,1748291440983,-397.47,0.00029654,2]
[362437964,1748291440993,-301.08447076,0.00029684,2]
[362437965,1748291441002,-500.0,0.00029789,2]
[362437966,1748291441013,-5407.35426837,0.00029915,2]
[362437967,1748291441022,-485.42420728,0.00029945,2]
[362437968,1748291441031,-206.11462213,0.00030007,2]
[362437970,1748291441041,-14902.95531718,0.00030017,2]
[362437972,1748291441050,-210.36569219,0.00030054,22]
[362437974,1748291441059,-766.0,0.000301,2]
[362437976,1748291441069,-237.0,0.000301,2]
[362437978,1748291441077,-375.0,0.000301,2]
[362437980,1748291441087,-206.0,0.00030235,2]
[362437982,1748291441096,-14902.95531718,0.00030522,2]
[362437983,1748291441105,-1000.0,0.0003096,2]
[362437984,1748291441115,-14902.95531718,0.00031028,2]
[362437985,1748291441124,-151.77,0.00031227,2]
[362437986,1748291441133,-155.54,0.0003129,2]
[362437987,1748291441142,-65250.83,0.000313,7]
[362437988,1748291441151,-153.099733,0.000313,7]
[362437989,1748291441160,-5407.35426837,0.00031345,2]
[362437990,1748291441169,-210.36569219,0.00031362,24]
[362437991,1748291441179,-14590.87282284,0.000314,5]
[362437992,1748291441188,-9742.26,0.00031477,2]
[362437993,1748291441197,-250.0,0.00031493,2]
[362437994,1748291441207,-14902.95531718,0.00031533,2]
[362437995,1748291441216,-460.2,0.00031541,2]
[362437996,1748291441225,-173.0,0.00031627,2]
[362437997,1748291441235,-920.4,0.00031641,2]
[362437998,1748291441244,-301.08447076,0.00031641,2]
[362437999,1748291441254,-3587.99,0.000317,7]
[362438000,1748291441263,-151.6,0.00031715,2]
[362438001,1748291441272,-207.4,0.00031781,2]
[362438002,1748291441281,-2000.0,0.000318,2]
[362438003,1748291441290,-668.967051,0.00031835,12]
[362438004,1748291441299,-397.47,0.00031918,2]
[362438005,1748291441309,-14902.95531718,0.00032039,2]
[362438006,1748291441318,-460.2,0.00032055,2]
[362438007,1748291441327,-745.77,0.00032055,2]
[362438008,1748291441336,-453.7,0.00032055,2]
[362438009,1748291441345,-453.7,0.00032055,2]
[362438010,1748291441355,-453.7,0.00032055,2]
[362438011,1748291441364,-817.06573279,0.00032396,2]
[362438012,1748291441373,-485.42420728,0.00032457,2]
[362438013,1748291441382,-460.2,0.000325,2]
[362438014,1748291441391,-14902.95531718,0.00032544,2]
[362438015,1748291441400,-1000.0,0.000326,2]
[362438016,1748291441409,-2500.0,0.000326,2]
[362438017,1748291441418,-1440.2703462,0.000326,4]
[362438018,1748291441427,-270.6948,0.000326,2]
[362438019,1748291441436,-1000.0,0.00032601,2]
[362438020,1748291441445,-638.6285,0.00032601,2]
[362438021,1748291441456,-173.129875,0.00032601,7]
[362438022,1748291441467,-292.457361,0.00032601,7]
[362438023,1748291441476,-151.0,0.00032601,7]
[362438024,1748291441485,-204.733338,0.00032601,7]
[362438025,1748291441495,-590.1795,0.00032601,7]
[362438026,1748291441503,-590.1795,0.00032601,7]
[362438027,1748291441512,-151.0,0.00032601,7]
[362438028,1748291441521,-151.0,0.00032601,7]
[362438029,1748291441530,-151.0,0.00032601,7]
[362438030,1748291441539,-151.0,0.00032601,7]
[362438031,1748291441548,-151.0,0.00032601,7]
[362438032,1748291441557,-151.0,0.00032601,7]
[362438033,1748291441566,-155.824089,0.00032601,7]
[362438034,1748291441575,-151.0,0.00032601,7]
[362438035,1748291441585,-1440.27034621,0.00032652,4]
[362438036,1748291441597,-210.36569219,0.00032669,27]
[362438037,1748291441608,-151.0,0.00032679,2]
[362438038,1748291441619,-668.65185757,0.00032679,2]
[362438039,1748291441633,-500.0,0.00032679,2]
[362438040,1748291441644,-340.0,0.00032679,2]
[362438041,1748291441653,-300.0,0.00032679,2]
[362438042,1748291441664,-300.0,0.00032679,2]
[362438043,1748291441677,-240.0,0.00032679,2]
[362438044,1748291441688,-1613.273,0.0003268,33]
[362438045,1748291441698,-4000.0,0.0003268,2]
[362438046,1748291441708,-155.54,0.0003269,2]
[362438047,1748291441718,-32826.222,0.0003269,2]
[362438048,1748291441727,-500.0,0.00032699,2]
[362438049,1748291441737,-150.0,0.00032699,2]
[362438050,1748291441746,-151.0,0.00032699,7]
[362438051,1748291441755,-151.0,0.00032699,7]
[362438052,1748291441764,-151.0,0.00032699,7]
[362438053,1748291441774,-151.0,0.00032699,7]
[362438054,1748291441784,-828.983882,0.00032699,7]
[362438055,1748291441793,-828.983882,0.00032699,7]
[362438056,1748291441804,-150.0,0.00032699,2]
[362438057,1748291441814,-500.0,0.00032699,2]
[362438058,1748291441823,-151.0,0.00032699,7]
[362438059,1748291441833,-151.0,0.00032699,7]
[362438060,1748291441842,-151.0,0.00032699,7]
[362438061,1748291441852,-151.0,0.00032699,7]
[362438062,1748291441862,-151.0,0.00032699,7]
[362438063,1748291441871,-151.0,0.00032699,7]
[362438064,1748291441881,-151.0,0.00032699,7]
[362438065,1748291441892,-151.0,0.00032699,7]
[362438066,1748291441903,-151.0,0.00032699,7]
[362438067,1748291441913,-151.0,0.00032699,7]
[362438068,1748291441923,-150.0,0.00032699,2]
[362438069,1748291441932,-1000.0,0.000327,12]
[362438070,1748291441943,-1000.0,0.000327,11]
[362438071,1748291441953,-1000.0,0.000327,10]
[362438072,1748291441963,-1000.0,0.000327,9]
[362438073,1748291441973,-1314.0,0.000327,8]
[362438074,1748291441982,-1000.0,0.000327,7]
[362438075,1748291441993,-1000.0,0.000327,7]
[362438076,1748291442003,-1000.0,0.000327,7]
[362438077,1748291442012,-1000.0,0.000327,7]
[362438078,1748291442022,-1000.0,0.000327,7]
[362438079,1748291442031,-1000.0,0.000327,9]
[362438080,1748291442041,-1000.0,0.000327,8]
[362438081,1748291442050,-146210.58661316,0.000327,15]
[362438082,1748291442060,-151.0,0.000327,7]
[362438083,1748291442068,-151.0,0.000327,7]
[362438084,1748291442078,-152.668853,0.000327,7]
[362438085,1748291442087,-154.369671,0.000327,7]
[362438086,1748291442097,-828.983882,0.000327,7]
[362438087,1748291442107,-828.983882,0.000327,7]
[362438088,1748291442117,-153.725234,0.000327,7]
[362438089,1748291442128,-151.0,0.000327,7]
[362438090,1748291442140,-151.0,0.000327,7]
[362438091,1748291442152,-277.865015,0.000327,7]
[362438092,1748291442163,-151.0,0.000327,7]
[362438093,1748291442175,-151.0,0.000327,7]
[362438094,1748291442185,-151.0,0.000327,7]
[362438095,1748291442195,-151.0,0.000327,7]
[362438096,1748291442206,-151.0,0.000327,7]
[362438097,1748291442216,-151.0,0.000327,7]
[362438098,1748291442225,-186.65508,0.000327,7]
[362438099,1748291442235,-151.0,0.000327,7]
[362438100,1748291442245,-151.0,0.000327,7]
[362438101,1748291442255,-151.0,0.000327,7]
[362438102,1748291442264,-151.0,0.000327,7]
[362438103,1748291442274,-151.0,0.000327,7]
[362438104,1748291442283,-151.0,0.000327,7]
[362438105,1748291442292,-151.0,0.000327,7]
[362438106,1748291442304,-65250.83,0.000327,7]
[362438107,1748291442315,-151.0,0.000327,7]
[362438108,1748291442325,-590.1795,0.000327,7]
[362438109,1748291442335,-590.1795,0.000327,7]
[362438110,1748291442346,-151.0,0.000327,7]
[362438111,1748291442356,-151.0,0.000327,7]
[362438112,1748291442366,-152.768893,0.000327,7]
[362438113,1748291442376,-151.0,0.000327,7]
[362438114,1748291442385,-151.0,0.000327,7]
[362438115,1748291442395,-151.0,0.000327,7]
[362438116,1748291442404,-151.0,0.000327,7]
[362438117,1748291442413,-500.0,0.00032701,2]
[362438118,1748291442423,-5000.0,0.00032713,2]
[362438119,1748291442432,-523.79607025,0.00032726,2]
[362438120,1748291442441,-150.0,0.00032726,2]
[362438121,1748291442451,-500.0,0.00032726,2]
[362438122,1748291442464,-163.75269402,0.00032733,4]
[362438123,1748291442474,-181.38295405,0.00032753,4]
[362438124,1748291442484,-1386.17606252,0.00032753,2]
[362438125,1748291442494,-150.0,0.00032754,2]
[362438126,1748291442503,-500.0,0.00032754,2]
[362438127,1748291442512,-273.0799,0.00032756,10]
[362438128,1748291442522,-1836.2391268,0.00032776,2]
[362438129,1748291442532,-251.75158529,0.00032776,2]
[362438130,1748291442541,-5407.35426837,0.00032776,2]
[362438131,1748291442551,-297.08217457,0.00032781,2]
[362438132,1748291442560,-500.0,0.00032781,2]
[362438133,1748291442569,-155.259932,0.00032793,7]
[362438134,1748291442578,-151.0,0.00032793,7]
[362438135,1748291442588,-151.0,0.00032793,7]
[362438136,1748291442597,-151.0,0.00032793,7]
[362438137,1748291442607,-151.0,0.00032793,7]
[362438138,1748291442616,-151.0,0.00032793,7]
[362438139,1748291442626,-151.0,0.00032793,7]
[362438140,1748291442637,-151.0,0.00032793,7]
[362438141,1748291442649,-151.0,0.00032793,7]
[362438142,1748291442658,-828.983882,0.00032793,7]
[362438143,1748291442668,-828.983882,0.00032793,7]
[362438144,1748291442678,-828.983882,0.00032793,7]
[362438145,1748291442687,-828.983882,0.00032793,7]
[362438146,1748291442697,-151.0,0.00032793,7]
[362438147,1748291442707,-151.0,0.00032793,7]
[362438148,1748291442717,-151.0,0.00032793,7]
[362438149,1748291442731,-151.0,0.00032793,7]
[362438150,1748291442742,-151.0,0.00032793,7]
[362438151,1748291442751,-151.0,0.00032793,7]
[362438152,1748291442761,-151.0,0.00032793,7]
[362438153,1748291442771,-151.0,0.00032793,7]
[362438154,1748291442782,-151.0,0.00032793,7]
[362438155,1748291442791,-151.0,0.00032793,7]
[362438156,1748291442802,-151.0,0.00032793,7]
[362438157,1748291442812,-151.0,0.00032793,7]
[362438158,1748291442822,-151.0,0.00032793,7]
[362438159,1748291442833,-153.685466,0.00032793,7]
[362438160,1748291442843,-151.0,0.00032793,7]
[362438161,1748291442853,-151.0,0.00032793,7]
[362438162,1748291442863,-151.0,0.00032793,7]
[362438163,1748291442874,-151.0,0.00032793,7]
[362438164,1748291442884,-151.0,0.00032793,7]
[362438165,1748291442893,-244.16987,0.00032793,7]
[362438166,1748291442903,-151.0,0.00032793,7]
[362438167,1748291442912,-151.0,0.00032793,7]
[362438168,1748291442922,-151.0,0.00032793,7]
[362438169,1748291442931,-151.0,0.00032793,7]
[362438170,1748291442941,-151.0,0.00032793,7]
[362438171,1748291442950,-151.428329,0.00032793,7]
[362438172,1748291442960,-590.1795,0.00032793,7]
[362438173,1748291442970,-590.1795,0.00032793,7]
[362438174,1748291442979,-590.1795,0.00032793,7]
[362438175,1748291442989,-590.1795,0.00032793,7]
[362438176,1748291442998,-151.0,0.00032793,7]
[362438177,1748291443008,-151.0,0.00032793,7]
[362438178,1748291443018,-151.0,0.00032793,7]
[362438179,1748291443028,-151.0,0.00032793,7]
[362438181,1748291443038,-151.0,0.00032793,7]
[362438182,1748291443048,-151.0,0.00032793,7]
[362438183,1748291443058,-151.0,0.00032793,7]
[362438184,1748291443068,-151.0,0.00032793,7]
[362438185,1748291443078,-151.0,0.00032793,7]
[362438186,1748291443089,-150.0,0.000328,2]
[362438187,1748291443098,-151.0,0.00032803,7]
[362438189,1748291443108,-151.0,0.00032803,7]
[362438190,1748291443116,-151.0,0.00032803,7]
[362438191,1748291443124,-151.0,0.00032803,7]
[362438192,1748291443132,-151.0,0.00032803,7]
[362438193,1748291443141,-151.0,0.00032803,7]
[362438194,1748291443149,-151.0,0.00032803,7]
[362438195,1748291443158,-151.0,0.00032803,7]
[362438196,1748291443166,-151.0,0.00032803,7]
[362438197,1748291443175,-151.0,0.00032803,7]
[362438198,1748291443183,-151.0,0.00032803,7]
[362438199,1748291443192,-151.0,0.00032803,7]
[362438200,1748291443201,-151.0,0.00032803,7]
[362438201,1748291443209,-151.0,0.00032803,7]
[362438202,1748291443219,-151.590186,0.00032803,7]
[362438203,1748291443228,-151.0,0.00032803,7]
[362438204,1748291443237,-151.0,0.00032803,7]
[362438205,1748291443247,-151.0,0.00032803,7]
[362438206,1748291443256,-151.0,0.00032803,7]
[362438207,1748291443266,-151.0,0.00032803,7]
[362438208,1748291443276,-151.0,0.00032803,7]
[362438209,1748291443286,-153.487451,0.00032803,7]
[362438210,1748291443295,-151.0,0.00032803,7]
[362438211,1748291443305,-151.0,0.00032803,7]
[362438212,1748291443314,-215.901272,0.00032803,7]
[362438213,1748291443323,-151.0,0.00032803,7]
[362438214,1748291443333,-151.0,0.00032803,7]
[362438215,1748291443343,-151.0,0.00032803,7]
[362438216,1748291443353,-151.0,0.00032803,7]
[362438217,1748291443362,-151.0,0.00032803,7]
[362438218,1748291443372,-151.0,0.00032803,7]
[362438219,1748291443560,-151.0,0.00032803,7]
[362438220,1748291443570,-151.0,0.00032803,7]
[362438221,1748291443580,-151.0,0.00032803,7]
[362438222,1748291443591,-171.084706,0.00032803,7]
[362438223,1748291443600,-151.0,0.00032803,7]
[362438224,1748291443610,-828.983882,0.00032803,7]
[362438225,1748291443619,-828.983882,0.00032803,7]
[362438226,1748291443629,-151.0,0.00032803,7]
[362438227,1748291443642,-151.0,0.00032803,7]
[362438228,1748291443652,-151.0,0.00032803,7]
[362438229,1748291443661,-151.0,0.00032803,7]
[362438230,1748291443670,-156.376787,0.00032803,7]
[362438231,1748291443681,-151.0,0.00032803,7]
[362438232,1748291443690,-151.0,0.00032803,7]
[362438233,1748291443699,-151.0,0.00032803,7]
[362438234,1748291443708,-151.0,0.00032803,7]
[362438235,1748291443718,-590.1795,0.00032803,7]
[362438236,1748291443727,-590.1795,0.00032803,7]
[362438237,1748291443735,-151.0,0.00032803,7]
[362438238,1748291443744,-217.143028,0.00032803,7]
[362438239,1748291443753,-151.0,0.00032803,7]
[362438240,1748291443764,-151.0,0.00032804,7]
[362438241,1748291443774,-151.0,0.00032804,7]
[362438242,1748291443783,-210.777285,0.00032804,7]
[362438243,1748291443793,-151.0,0.00032804,7]
[362438244,1748291443802,-173.849719,0.00032804,7]
[362438245,1748291443812,-151.0,0.00032804,7]
[362438246,1748291443822,-151.0,0.00032804,7]
[362438247,1748291443832,-151.0,0.00032804,7]
[362438248,1748291443842,-151.0,0.00032804,7]
[362438249,1748291443852,-167.199631,0.00032804,7]
[362438250,1748291443862,-151.0,0.00032804,7]
[362438251,1748291443872,-151.0,0.00032804,7]
[362438252,1748291443882,-151.0,0.00032804,7]
[362438253,1748291443891,-152.310134,0.00032804,7]
[362438254,1748291443901,-151.0,0.00032804,7]
[362438255,1748291443911,-151.0,0.00032804,7]
[362438256,1748291443920,-151.0,0.00032804,7]
[362438257,1748291443930,-151.0,0.00032804,7]
[362438258,1748291443940,-151.0,0.00032804,7]
[362438259,1748291443949,-151.0,0.00032804,7]
[362438260,1748291443959,-151.0,0.00032804,7]
[362438261,1748291443968,-285.212805,0.00032804,7]
[362438262,1748291443977,-151.0,0.00032804,7]
[362438263,1748291443986,-154.059749,0.00032804,7]
[362438264,1748291443996,-151.0,0.00032804,7]
[362438265,1748291444005,-152.857036,0.00032804,7]
[362438266,1748291444014,-192.106564,0.00032804,7]
[362438267,1748291444023,-500.0,0.00032809,2]
[362438268,1748291444033,-151.0,0.00032812,7]
[362438269,1748291444042,-151.0,0.00032812,7]
[362438270,1748291444051,-355.0,0.00032813,5]
[362438271,1748291444062,-151.0,0.00032813,7]
[362438272,1748291444073,-151.0,0.00032813,7]
[362438273,1748291444084,-151.627626,0.00032813,7]
[362438274,1748291444095,-151.822226,0.00032813,7]
[362438275,1748291444105,-151.0,0.00032813,7]
[362438276,1748291444117,-151.0,0.00032813,7]
[362438277,1748291444128,-151.0,0.00032813,7]
[362438278,1748291444139,-151.0,0.00032813,7]
[362438279,1748291444150,-151.0,0.00032813,7]
[362438280,1748291444161,-151.0,0.00032813,7]
[362438281,1748291444171,-151.0,0.00032813,7]
[362438282,1748291444181,-151.0,0.00032813,7]
[362438283,1748291444191,-151.0,0.00032813,7]
[362438284,1748291444202,-151.0,0.00032813,7]
[362438285,1748291444211,-152.648324,0.00032813,7]
[362438286,1748291444220,-151.0,0.00032813,7]
[362438287,1748291444229,-152.951142,0.00032813,7]
[362438288,1748291444239,-151.0,0.00032813,7]
[362438289,1748291444249,-155.922147,0.00032813,7]
[362438290,1748291444258,-155.922147,0.00032813,7]
[362438291,1748291444268,-155.922147,0.00032813,7]
[362438292,1748291444280,-155.922147,0.00032813,7]
[362438293,1748291444289,-155.922147,0.00032813,7]
[362438294,1748291444299,-155.922147,0.00032813,7]
[362438295,1748291444308,-151.0,0.00032813,7]
[362438296,1748291444319,-151.0,0.00032813,7]
[362438297,1748291444329,-151.0,0.00032813,7]
[362438298,1748291444340,-151.0,0.00032813,7]
[362438299,1748291444349,-151.0,0.00032813,7]
[362438300,1748291444360,-151.0,0.00032813,7]
[362438301,1748291444371,-151.0,0.00032813,7]
[362438302,1748291444382,-151.0,0.00032813,7]
[362438303,1748291444391,-151.0,0.00032813,7]
[362438304,1748291444401,-4363.0952526,0.00032813,2]
[362438305,1748291444410,-133887.82348771,0.00032813,2]
[362438306,1748291444567,-2897.79894787,0.00032813,2]
[362438307,1748291444578,-29410.10627412,0.00032813,2]
[362438308,1748291444590,-1748.47548661,0.00032813,2]
[362438309,1748291444601,-8456.29292692,0.00032813,2]
[362438310,1748291444704,-151.0,0.000249,7]
[362438311,1748291444715,-14099.39904697,0.00032813,2]
[362438312,1748291444725,-782.8244422,0.00032813,2]
[362438313,1748291444735,-151.0,0.00032813,7]
[362438314,1748291444744,-180.45825,0.00032813,7]
[362438315,1748291444754,-20143.4855797,0.00032813,2]
[362438316,1748291444764,-828.983882,0.00032813,7]
[362438317,1748291444773,-828.983882,0.00032813,7]
[362438318,1748291444783,-828.983882,0.00032813,7]
[362438319,1748291444793,-828.983882,0.00032813,7]
[362438320,1748291444802,-258.0898003,0.00032813,2]
[362438321,1748291444812,-155.58611,0.00032813,7]
[362438322,1748291444822,-151.0,0.00032813,7]
[362438323,1748291444831,-151.0,0.00032813,7]
[362438324,1748291444841,-151.0,0.00032813,7]
[362438325,1748291444850,-151.0,0.00032813,7]
[362438326,1748291444860,-151.0,0.00032813,7]
[362438327,1748291444869,-184.19972,0.00032813,7]
[362438328,1748291444879,-151.0,0.00032813,7]
[362438329,1748291444889,-151.0,0.00032813,7]
[362438330,1748291444898,-151.0,0.00032813,7]
[362438331,1748291444908,-250.111266,0.00032813,7]
[362438332,1748291444918,-151.0,0.00032813,7]
[362438333,1748291444927,-1367.9702781,0.00032813,2]
[362438334,1748291444937,-590.1795,0.00032813,7]
[362438335,1748291444947,-590.1795,0.00032813,7]
[362438336,1748291444957,-151.0,0.00032813,7]
[362438337,1748291444967,-151.0,0.00032813,7]
[362438338,1748291444976,-500.0,0.0003282,2]
[362438339,1748291444986,-151.0,0.00032821,7]
[362438340,1748291444995,-151.0,0.00032821,7]
[362438341,1748291445005,-151.0,0.00032821,7]
[362438342,1748291445014,-151.0,0.00032821,7]
[362438343,1748291445024,-151.0,0.00032821,7]
[362438344,1748291445034,-151.0,0.00032822,7]
[362438345,1748291445044,-155.922147,0.00032822,7]
[362438346,1748291445053,-155.922147,0.00032822,7]
[362438347,1748291445062,-151.0,0.00032823,7]
[362438348,1748291445072,-151.0,0.00032823,7]
[362438349,1748291445081,-155.922147,0.00032825,7]
[362438350,1748291445090,-155.922147,0.00032825,7]
[362438351,1748291445098,-2003.63415836,0.00032829,2]
[362438352,1748291445107,-151.725606,0.00032833,7]
[362438353,1748291445115,-151.0,0.00032833,7]
[362438354,1748291445123,-324.0,0.00032836,2]
[362438355,1748291445131,-590.1795,0.00032836,7]
[362438356,1748291445139,-590.1795,0.00032836,7]
[362438357,1748291445148,-151.0,0.00032836,7]
[362438358,1748291445158,-151.0,0.00032836,7]
[362438359,1748291445167,-151.0,0.00032839,7]
[362438360,1748291445176,-151.0,0.00032839,7]
[362438361,1748291445185,-151.0,0.00032839,7]
[362438362,1748291445194,-151.0,0.00032839,7]
[362438363,1748291445204,-151.0,0.00032843,7]
[362438364,1748291445212,-151.0,0.00032843,7]
[362438365,1748291445222,-151.0,0.00032843,7]
[362438366,1748291445231,-151.0,0.00032843,7]
[362438367,1748291445240,-783.1762586,0.00032849,30]
[362438368,1748291445250,-318.36,0.00032852,2]
[362438369,1748291445260,-155.922147,0.00032853,7]
[362438370,1748291445271,-155.922147,0.00032853,7]
[362438371,1748291445281,-155.922147,0.00032853,7]
[362438372,1748291445291,-155.922147,0.00032853,7]
[362438373,1748291445301,-151.0,0.00032853,7]
[362438374,1748291445312,-158.496658,0.00032853,7]
[362438375,1748291445322,-3640.9771545,0.00032853,2]
[362438376,1748291445334,-9860.25289847,0.00032853,2]
[362438377,1748291445850,-151.0,0.00029511,7]
[362438378,1748291445860,-452.3,0.00032055,2]
[362438379,1748291445870,-19514.37281678,0.00032776,2]
[362438380,1748291445880,-60528.71718322,0.00032853,2]
[362438381,1748291445900,-88582.06532711,0.00032853,2]
[362438382,1748291445911,-16809.6194471,0.00032853,2]
[362438383,1748291445925,-828.983882,0.00032853,7]
[362438384,1748291445935,-828.983882,0.00032853,7]
[362438385,1748291445947,-828.983882,0.00032853,7]
[362438386,1748291445957,-828.983882,0.00032853,7]
[362438387,1748291445967,-258.0898003,0.00032853,2]
[362438388,1748291445977,-151.0,0.00032853,7]
[362438390,1748291445986,-151.0,0.00032853,7]
[362438392,1748291445996,-151.0,0.00032853,7]
[362438393,1748291446006,-151.0,0.00032853,7]
[362438395,1748291446015,-151.0,0.00032853,7]
[362438396,1748291446026,-151.0,0.00032853,7]
[362438397,1748291446035,-151.0,0.00032853,7]
[362438398,1748291446200,-1142.0905117,0.00032853,2]
[362438399,1748291446236,-590.1795,0.00032853,7]
[362438400,1748291446246,-590.1795,0.00032853,7]
[362438401,1748291446256,-151.0,0.00032853,7]
[362438402,1748291446266,-187.003132,0.00032853,7]
[362438403,1748291446275,-151.0,0.00032866,7]
[362438404,1748291446285,-500.0,0.00032873,5]
[362438405,1748291446296,-521.1084414,0.00032873,5]
[362438406,1748291446306,-500.0,0.00032873,5]
[362438407,1748291446315,-500.0,0.00032873,5]
[362438408,1748291446326,-500.0,0.00032873,5]
[362438409,1748291446335,-501.62157536,0.00032873,5]
[362438410,1748291446347,-501.29079307,0.00032873,5]
[362438411,1748291446357,-500.0,0.00032873,5]
[362438412,1748291446368,-503.80124482,0.00032873,5]
[362438413,1748291446377,-500.0,0.00032873,5]
[362438414,1748291446387,-1000.0,0.00032873,5]
[362438415,1748291446396,-513.32456536,0.00032873,5]
[362438416,1748291446406,-500.0,0.00032873,5]
[362438417,1748291446416,-500.0,0.00032873,5]
[362438418,1748291446425,-155.922147,0.00032873,7]
[362438419,1748291446435,-155.922147,0.00032873,7]
[362438420,1748291446444,-154.01,0.00032876,2]
[362438421,1748291446454,-2738.3,0.00032876,3]
[362438422,1748291446463,-423.95908833,0.00032876,2]
[362438423,1748291446474,-421.25553172,0.00032876,2]
[362438424,1748291446484,-420.0,0.00032876,2]
[362438425,1748291446494,-426.17103624,0.00032876,2]
[362438426,1748291446503,-420.0,0.00032876,2]
[362438427,1748291446512,-420.0,0.00032876,2]
[362438428,1748291446522,-150.594356,0.00032876,2]
[362438429,1748291446531,-420.0,0.00032876,2]
[362438430,1748291446540,-429.98207986,0.00032876,2]
[362438431,1748291446549,-430.20854722,0.00032876,2]
[362438432,1748291446558,-420.0,0.00032876,2]
[362438433,1748291446567,-420.0,0.00032876,2]
[362438434,1748291446576,-420.0,0.00032876,2]
[362438435,1748291446586,-420.0,0.00032876,2]
[362438436,1748291446595,-420.0,0.00032876,2]
[362438437,1748291446604,-420.0,0.00032876,2]
[362438438,1748291446613,-420.0,0.00032876,2]
[362438439,1748291446622,-420.0,0.00032876,2]
[362438440,1748291446632,-420.0,0.00032876,2]
[362438441,1748291446644,-420.0,0.00032876,2]
[362438442,1748291446653,-420.0,0.00032876,2]
[362438443,1748291446662,-420.0,0.00032876,2]
[362438444,1748291446671,-420.0,0.00032876,2]
[362438445,1748291446682,-420.0,0.00032876,2]
[362438446,1748291446692,-424.23563339,0.00032876,2]
[362438447,1748291446701,-420.0,0.00032876,2]